bitfinex/quotes_ETHUSD_20241216
["timestamp","ask_amount","ask_price","bid_price","bid_amount"]
[1734373825273,0.7626,4043.1,4042.5,4.081]
[1734373825584,0.7626,4043.1,4042.7,1.482]
[1734373826199,0.7626,4043.1,4042.3,1.482]
[1734373826386,0.7626,4043.1,4042.2,2.599]
[1734373826590,0.7626,4043.1,4042.3,1.482]
[1734373827005,0.7626,4043.1,4042.5,1.482]
[1734373827333,1.83915914,4043.5,4042.7,1.482]
[1734373827536,0.8064,4043.5,4042.7,4.081]
[1734373827689,0.8064,4043.5,4042.9,1.482]
[1734373827885,0.8064,4043.5,4043.0,2.1901]
[1734373828103,0.8064,4043.8,4043.0,2.1901]
[1734373828286,3.0154774,4043.8,4043.0,2.1901]
[1734373828501,0.8064,4043.8,4043.1,1.482]
[1734373828703,1.83915914,4043.8,4043.1,1.482]
[1734373828900,1.17671898,4043.7,4043.1,1.482]
[1734373829102,1.83915914,4043.8,4043.1,2.26091]
[1734373829302,1.17678256,4043.7,4043.1,2.26091]
[1734373829536,1.83915914,4043.8,4043.1,2.26091]
[1734373829734,0.8064,4043.8,4043.1,2.26091]
[1734373829933,3.0159597,4043.8,4042.9,1.482]
[1734373830231,1.17680056,4043.7,4042.9,1.482]
[1734373830432,2.2095597,4043.7,4042.9,1.482]
[1734373831393,0.02529089,4043.6,4042.9,1.482]
[1734373831631,1.03275914,4043.7,4042.9,1.482]
[1734373831802,0.7786,4043.4,4042.3,5.3001]
[1734373832008,2.20978526,4043.3,4042.3,1.482]
[1734373832200,1.03275914,4043.3,4042.3,1.482]
[1734373832534,1.03275914,4043.2,4042.3,1.482]
[1734373833530,2.20996239,4043.3,4042.3,1.482]
[1734373833736,0.7732,4043.1,4042.3,2.27137]
[1734373833893,0.02529089,4043.0,4042.3,1.482]
[1734373834298,1.03275914,4043.0,4042.1,1.482]
[1734373834631,1.03275914,4042.9,4042.1,1.482]
[1734373835005,1.03275914,4043.0,4042.1,1.482]
[1734373835233,2.21017807,4043.0,4042.3,1.482]
[1734373835432,1.03275914,4043.0,4042.3,1.482]
[1734373835936,2.21031382,4043.0,4042.3,1.482]
[1734373836143,1.17755468,4042.9,4042.3,1.482]
[1734373836293,1.03275914,4042.9,4042.1,1.482]
[1734373837248,1.03275914,4042.9,4042.0,1.482]
[1734373837459,0.8199,4042.8,4042.0,1.482]
[1734373837609,0.8199,4042.8,4042.0,2.26841]
[1734373838505,0.8199,4042.8,4042.2,3.0]
[1734373838752,1.03275914,4042.9,4042.1,1.482]
[1734373838965,2.58755925,4043.5,4042.5,4.482]
[1734373838966,2.36803871,4043.5,4042.5,4.482]
[1734373839125,1.16758858,4043.4,4042.7,1.482]
[1734373839325,1.16758858,4043.3,4042.7,1.482]
[1734373839542,0.8189,4043.5,4042.7,1.482]
[1734373839752,1.16754834,4043.4,4042.7,1.482]
[1734373839911,0.8189,4043.5,4042.9,1.482]
[1734373840109,1.16754904,4043.4,4042.9,1.482]
[1734373840313,0.8189,4043.5,4042.9,1.482]
[1734373840909,1.54913871,4043.7,4042.9,1.482]
[1734373841152,2.71663732,4043.7,4042.9,1.482]
[1734373841466,0.02529089,4043.6,4043.0,0.22685]
[1734373841617,1.16749861,4043.5,4043.0,0.22685]
[1734373841822,0.02529089,4043.4,4043.0,0.22685]
[1734373842049,1.54913871,4043.7,4043.0,0.22685]
[1734373842356,1.167532,4043.6,4043.1,1.482]
[1734373842653,2.31783871,4043.8,4043.1,1.731535]
[1734373842960,1.16751083,4043.7,4043.1,1.731535]
[1734373843173,1.1675004,4043.6,4043.1,1.731535]
[1734373843451,2.31783871,4043.8,4043.1,1.731535]
[1734373843669,1.16746821,4043.7,4043.1,1.731535]
[1734373843829,1.16746821,4043.6,4043.1,1.731535]
[1734373844028,1.16746821,4043.5,4043.1,1.731535]
[1734373844390,1.1674705,4043.4,4042.4,0.759]
[1734373844566,2.33283871,4043.6,4042.4,0.759]
[1734373844714,1.16748809,4043.5,4042.4,0.759]
[1734373844917,1.16748809,4043.4,4042.4,0.759]
[1734373845123,0.7837,4043.6,4042.5,1.482]
[1734373845364,1.35688871,4043.7,4042.8,3.55]
[1734373845531,2.88951829,4044.8,4043.5,4.631]
[1734373845729,1.16714494,4044.7,4043.7,2.2602]
[1734373845911,1.16714494,4044.6,4043.7,2.2602]
[1734373846116,0.824,4044.8,4043.9,1.482]
[1734373846316,2.06551829,4045.1,4043.9,1.482]
[1734373846317,2.74829436,4044.9,4043.9,1.482]
[1734373847046,2.74829436,4044.9,4044.1,1.482]
[1734373848956,2.74829436,4044.2,4044.1,1.482]
[1734373849351,2.74829436,4044.2,4043.3,1.482]
[1734373849552,2.74829436,4043.4,4043.3,1.482]
[1734373849849,2.74829436,4043.4,4043.3,1.71233]
[1734373850050,2.74829436,4043.8,4043.3,1.71233]
[1734373850548,2.74829436,4043.8,4043.2,0.8213]
[1734373850973,1.05920998,4044.1,4043.2,0.8213]
[1734373851270,2.74829436,4044.1,4043.2,0.8213]
[1734373852063,0.8178,4044.3,4043.2,0.8213]
[1734373852064,2.74829436,4043.7,4043.2,0.8213]
[1734373853166,0.8178,4044.3,4043.2,0.8213]
[1734373853399,2.74829436,4043.9,4043.2,2.3033]
[1734373853605,2.74829436,4044.4,4043.4,1.482]
[1734373854198,1.05905595,4044.3,4043.3,0.23033]
[1734373854402,0.02529089,4044.3,4043.3,3.0]
[1734373854762,2.77358525,4044.4,4043.3,3.0]
[1734373855007,2.74829436,4044.0,4043.2,2.3033]
[1734373855162,1.03353741,4044.2,4043.2,2.3033]
[1734373855507,0.02529089,4044.2,4043.2,2.3033]
[1734373856216,1.03354324,4044.2,4043.2,2.3033]
[1734373856504,0.02529089,4044.2,4043.2,2.3033]
[1734373856811,0.8014,4044.6,4043.2,0.8213]
[1734373857014,0.7843,4044.3,4043.2,0.8213]
[1734373857179,0.02529089,4044.2,4043.2,0.8213]
[1734373857375,1.03349467,4044.1,4043.2,0.8213]
[1734373857589,2.3598329,4044.3,4043.2,0.8213]
[1734373857590,0.80959089,4044.3,4043.2,0.8213]
[1734373858502,1.03347047,4044.1,4043.4,3.0]
[1734373858910,1.03347047,4044.1,4043.2,0.8213]
[1734373860305,1.03347047,4044.1,4043.2,1.35163]
[1734373860486,2.3597966,4044.3,4043.2,4.35163]
[1734373860487,1.03347047,4044.2,4043.2,4.35163]
[1734373860836,1.03347047,4043.7,4042.4,0.8186]
[1734373860980,1.85087047,4043.6,4042.4,0.8186]
[1734373861181,1.05876136,4043.5,4042.4,0.8186]
[1734373861420,1.03347047,4043.5,4042.4,0.8186]
[1734373861716,0.84269089,4043.6,4042.4,0.8186]
[1734373861717,0.8174,4043.6,4042.4,0.8186]
[1734373861921,0.8174,4043.6,4042.5,1.482]
[1734373862135,0.8174,4043.6,4042.5,1.71206]
[1734373862499,1.03383153,4043.5,4042.5,4.71206]
[1734373862683,1.03383153,4043.8,4042.5,7.31106]
[1734373863021,1.5507473,4044.0,4043.1,1.482]
[1734373863022,1.03383153,4044.0,4043.1,1.482]
[1734373863247,1.05912242,4044.0,4043.1,1.482]
[1734373863683,1.03383153,4044.0,4043.1,1.482]
[1734373863883,0.7818,4044.3,4043.3,1.482]
[1734373864409,0.02529089,4044.2,4043.3,1.482]
[1734373864712,1.03370346,4044.2,4043.3,1.482]
[1734373864920,0.7818,4044.3,4043.3,1.482]
[1734373865227,0.7818,4044.3,4043.3,4.482]
[1734373865434,1.03370346,4044.4,4043.3,7.87126]
[1734373865608,1.79090346,4044.6,4043.5,1.482]
[1734373866593,1.79090346,4044.6,4043.5,4.081]
[1734373866832,1.03370346,4044.8,4043.8,2.3102]
[1734373867134,1.79090346,4045.0,4044.0,1.482]
[1734373867286,1.81619435,4045.0,4044.0,2.27292]
[1734373867485,1.79090346,4045.0,4044.0,2.27292]
[1734373867686,0.7572,4045.0,4044.0,2.27292]
[1734373868181,0.78249089,4045.0,4044.0,2.27292]
[1734373868407,1.79090346,4045.0,4044.0,2.27292]
[1734373868612,1.57584609,4045.2,4044.1,2.352012]
[1734373868613,1.03370346,4045.1,4044.1,2.352012]
[1734373869129,0.02529089,4045.2,4044.2,5.3102]
[1734373869309,0.7572,4045.3,4044.2,2.3102]
[1734373869618,2.74829436,4045.6,4044.2,2.3102]
[1734373869792,2.74829436,4045.1,4044.4,1.482]
[1734373871997,2.74829436,4044.7,4044.3,3.23102]
[1734373872184,2.74829436,4044.7,4044.2,2.3102]
[1734373873643,2.74829436,4044.3,4043.7,1.482]
[1734373873938,2.74829436,4043.9,4043.6,0.7984]
[1734373874088,0.02529089,4043.8,4043.6,0.7984]
[1734373874287,2.74829436,4043.9,4042.6,0.7984]
[1734373874504,0.02529089,4044.1,4042.7,1.482]
[1734373874505,2.74829436,4043.5,4042.7,1.482]
[1734373874718,2.74829436,4043.5,4042.9,1.482]
[1734373875632,2.74829436,4043.5,4042.6,2.2804]
[1734373875782,2.74829436,4043.1,4042.6,2.2804]
[1734373876438,0.7814,4043.4,4042.6,2.2804]
[1734373877127,1.03244526,4043.9,4042.8,1.482]
[1734373877337,0.80669089,4044.2,4042.8,1.482]
[1734373877913,0.7814,4044.2,4042.8,1.482]
[1734373878090,2.9786103,4044.2,4042.8,1.482]
[1734373878291,0.7814,4044.2,4042.8,1.482]
[1734373878517,1.03244526,4044.4,4043.2,1.482]
[1734373878720,3.55058525,4044.5,4043.2,1.482]
[1734373878923,4.58303051,4044.5,4043.2,1.482]
[1734373879339,3.52529436,4044.5,4043.2,1.482]
[1734373879630,0.777,4044.5,4043.4,1.482]
[1734373880913,0.80229089,4044.5,4043.4,1.482]
[1734373881221,0.02529089,4044.4,4043.4,1.482]
[1734373881422,0.02529089,4044.4,4043.3,0.78844]
[1734373881623,2.77358525,4044.4,4043.3,0.78844]
[1734373881935,1.03277638,4044.1,4043.1,0.8034]
[1734373882130,1.03277638,4044.2,4043.1,0.8034]
[1734373882331,0.02529089,4044.3,4043.2,1.482]
[1734373882533,0.02529089,4044.3,4043.3,0.22854]
[1734373882888,0.02529089,4044.3,4043.2,1.482]
[1734373883136,1.05806727,4044.3,4043.1,0.8034]
[1734373883439,1.03277638,4044.1,4043.1,0.8034]
[1734373883598,2.19832154,4044.0,4043.1,0.8034]
[1734373883801,1.05806727,4044.1,4043.1,0.8034]
[1734373884119,2.45918726,4044.0,4043.1,0.8034]
[1734373884322,1.03277638,4044.0,4043.1,0.8034]
[1734373884706,1.03277638,4044.1,4043.1,0.8034]
[1734373884913,0.02529089,4044.0,4043.1,0.8034]
[1734373885112,2.22408998,4044.0,4043.1,0.8034]
[1734373885296,1.05806727,4044.0,4043.1,0.8034]
[1734373885635,1.16602381,4043.9,4043.1,0.8034]
[1734373885853,0.02529089,4043.8,4042.6,1.482]
[1734373886052,0.02529089,4043.8,4042.7,2.4235]
[1734373886549,0.02529089,4044.4,4042.7,2.4235]
[1734373886935,1.0335509,4044.0,4042.7,2.4235]
[1734373887262,2.19964032,4043.9,4042.7,2.4235]
[1734373887564,0.02529089,4043.8,4042.7,2.4235]
[1734373887716,0.02529089,4043.8,4042.8,3.24235]
[1734373887911,0.02529089,4043.8,4042.8,3.0]
[1734373888257,1.7922509,4043.7,4042.1,1.482]
[1734373888462,1.7922509,4043.7,4042.3,4.482]
[1734373888463,1.19148376,4043.6,4042.3,4.482]
[1734373888756,1.7922509,4043.7,4042.3,4.482]
[1734373888912,1.7922509,4043.7,4042.5,3.7674]
[1734373888913,0.7587,4043.7,4042.5,3.7674]
[1734373890016,1.7922509,4043.7,4042.5,3.7674]
[1734373891064,1.0335509,4043.8,4042.5,5.2494]
[1734373891216,1.0335509,4044.0,4042.9,1.482]
[1734373891416,1.55032635,4044.2,4042.9,1.482]
[1734373891417,1.0335509,4044.2,4042.9,1.482]
[1734373891615,1.0335509,4044.2,4043.1,2.2887]
[1734373892015,0.02529089,4044.2,4043.1,2.2887]
[1734373892220,0.02529089,4044.3,4043.1,2.2887]
[1734373892462,0.7875,4044.4,4043.1,2.2887]
[1734373892615,0.7875,4044.4,4043.2,4.72569]
[1734373892817,1.82102155,4044.4,4043.2,4.72569]
[1734373893064,1.16604682,4044.3,4043.2,4.72569]
[1734373893264,1.82102155,4044.4,4043.2,4.72569]
[1734373893452,1.16605995,4044.3,4043.2,4.72569]
[1734373893653,1.03352155,4044.3,4043.3,0.568059]
[1734373893852,1.82102155,4044.4,4043.3,0.568059]
[1734373894162,2.19964737,4044.3,4043.3,0.568059]
[1734373894663,1.03352155,4044.5,4043.6,0.55]
[1734373894870,1.03352155,4044.8,4043.8,0.55]
[1734373895077,1.03352155,4044.9,4043.9,0.7528]
[1734373895386,0.02529089,4044.8,4044.0,0.55]
[1734373895948,1.03352155,4044.9,4044.0,0.55]
[1734373896271,1.03352155,4044.9,4044.1,0.13028]
[1734373896468,0.02529089,4044.8,4044.1,0.13028]
[1734373897472,0.02529089,4044.9,4044.1,0.13028]
[1734373897674,0.02529089,4044.9,4043.9,0.7528]
[1734373897879,2.74829436,4045.0,4043.9,0.7528]
[1734373898176,2.19921054,4044.9,4043.9,0.7528]
[1734373898359,3.78165632,4045.0,4043.9,0.7528]
[1734373898560,3.78165632,4045.0,4044.0,0.55]
[1734373898732,1.16580548,4044.9,4044.1,0.13028]
[1734373898933,3.78165632,4045.0,4044.1,0.13028]
[1734373899367,2.77358525,4045.0,4044.1,0.13028]
[1734373899748,2.77358525,4045.0,4044.0,0.55]
[1734373899749,1.19099456,4044.9,4044.0,0.55]
[1734373899949,2.74829436,4044.3,4044.0,0.55]
[1734373902484,2.74829436,4044.7,4044.0,0.55]
[1734373903591,0.02529089,4044.6,4044.0,0.55]
[1734373904491,2.77358525,4044.7,4044.0,0.55]
[1734373904863,2.77358525,4044.7,4043.6,1.06444096]
[1734373904864,2.74829436,4044.2,4043.6,1.06444096]
[1734373905254,2.74829436,4044.2,4043.6,0.25944096]
[1734373906644,0.02529089,4044.1,4043.6,0.25944096]
[1734373906964,3.78144448,4044.2,4043.6,0.25944096]
[1734373907391,2.74829436,4043.8,4043.6,0.25944096]
[1734373907690,2.77358525,4043.8,4043.6,0.25944096]
[1734373908465,2.74829436,4043.8,4043.6,0.25944096]
[1734373909708,2.74829436,4043.8,4043.7,0.55]
[1734373910805,2.74829436,4043.8,4043.6,0.25944096]
[1734373911014,3.36096296,4043.8,4043.6,0.25944096]
[1734373911867,4.39443963,4043.8,4043.6,0.25944096]
[1734373912823,1.17131634,4043.7,4043.6,0.25944096]
[1734373912971,2.72153135,4043.7,4043.6,0.25944096]
[1734373913281,0.797,4043.6,4041.8,0.8001]
[1734373913487,2.74829436,4042.8,4041.8,0.8001]
[1734373914363,2.74829436,4042.4,4041.8,0.8001]
[1734373914623,2.74829436,4042.0,4041.1,0.7871]
[1734373914909,0.02529089,4041.9,4041.1,0.7871]
[1734373916638,0.02529089,4042.1,4041.2,0.55]
[1734373917159,0.7792,4042.2,4041.2,0.55]
[1734373917288,2.74829436,4042.0,4041.2,0.55]
[1734373917485,0.02529089,4041.9,4041.2,0.55]
[1734373917689,0.35527853,4042.1,4041.2,0.55]
[1734373917690,0.38056942,4042.1,4041.2,0.55]
[1734373918542,0.7792,4042.2,4041.2,0.55]
[1734373918754,1.03352779,4043.0,4041.5,0.8022]
[1734373918927,2.37429168,4043.2,4041.5,0.8022]
[1734373918928,0.824,4043.2,4041.5,0.8022]
[1734373919095,0.824,4043.2,4042.9,3.0]
[1734373919293,0.68794943,4043.5,4041.7,0.7966]
[1734373919294,0.68794943,4043.5,4043.0,0.55]
[1734373919540,0.24948772,4043.4,4043.0,0.55]
[1734373919708,0.02529089,4043.3,4042.8,0.55]
[1734373919906,0.7734,4043.1,4041.5,0.7966]
[1734373920240,0.02529089,4043.0,4041.6,0.55]
[1734373920907,0.02529089,4043.0,4042.7,3.0]
[1734373921095,0.7734,4043.1,4041.6,0.55]
[1734373921304,0.7734,4043.1,4042.9,3.0]
[1734373921636,0.7734,4043.1,4042.0,0.55]
[1734373921856,0.02529089,4043.0,4042.0,0.55]
[1734373924338,0.02529089,4043.0,4039.4,4.32345667]
[1734373924339,0.7691,4042.9,4040.6,0.8177]
[1734373924536,0.02529089,4042.8,4040.6,0.8177]
[1734373924849,0.7691,4042.7,4040.6,1.04767]
[1734373925044,0.7691,4042.7,4040.6,0.8177]
[1734373925045,0.02529089,4042.6,4040.6,0.8177]
[1734373925411,0.7691,4042.7,4040.8,0.7581]
[1734373925805,0.02529089,4042.6,4040.8,0.7581]
[1734373926142,0.7691,4042.7,4040.9,3.55]
[1734373926311,0.7691,4042.7,4041.2,0.8033]
[1734373926503,0.7691,4042.7,4041.3,0.55]
[1734373926846,0.79439089,4042.7,4042.5,0.24737]
[1734373927058,0.7691,4042.7,4042.5,0.24737]
[1734373927542,0.7691,4042.7,4042.2,0.79738]
[1734373927728,0.79439089,4042.7,4042.4,0.24737]
[1734373928253,6.55e-06,4043.2,4042.7,0.7679]
[1734373928458,2.31469168,4044.7,4043.6,0.55]
[1734373928601,0.7644,4044.7,4044.6,0.24724]
[1734373928801,0.7644,4045.3,4044.6,0.79724]
[1734373928999,0.7644,4045.3,4044.9,0.24721]
[1734373929209,0.23146917,4045.2,4044.9,0.24721]
[1734373929416,0.23146917,4045.2,4044.6,0.79724]
[1734373929704,2.74829436,4044.7,4044.5,0.24724]
[1734373929903,2.74829436,4044.7,4044.6,0.24724]
[1734373930157,3.37750234,4044.8,4044.7,0.24723]
[1734373930303,3.71525257,4044.8,4044.7,0.24723]
[1734373930503,3.71525257,4044.8,4044.6,0.24724]
[1734373930704,3.71525257,4044.8,4044.7,0.24723]
[1734373931104,3.71525257,4044.8,4044.4,3.0]
[1734373931305,3.37750234,4044.5,4044.4,3.0]
[1734373931505,3.8269376,4044.5,4044.4,3.0]
[1734373931735,3.8269376,4044.5,4044.4,3.24725]
[1734373932809,3.8269376,4044.5,4044.4,0.24725]
[1734373933324,3.8269376,4044.5,4044.4,3.24725]
[1734373934071,3.8269376,4044.5,4044.4,0.24725]
[1734373934285,3.8269376,4044.5,4044.4,3.24725]
[1734373934651,3.8269376,4044.5,4044.4,0.24725]
[1734373934851,3.8269376,4044.5,4044.4,3.24725]
[1734373935560,3.8269376,4044.5,4044.4,0.24725]
[1734373935767,3.8269376,4044.5,4044.4,3.24725]
[1734373936536,3.8269376,4044.5,4044.4,0.24725]
[1734373936736,3.8269376,4044.5,4044.4,3.24725]
[1734373937680,3.8269376,4044.5,4044.4,3.0]
[1734373937888,3.8269376,4044.5,4043.2,0.7882]
[1734373938058,3.37750234,4043.8,4042.8,0.7882]
[1734373938383,3.37750234,4043.8,4043.5,0.2473]
[1734373938536,3.37750234,4043.8,4043.7,0.24729]
[1734373939444,3.37750234,4043.8,4043.7,0.79729]
[1734373939670,3.37750234,4043.8,4043.7,3.79729]
[1734373940384,3.37750234,4043.8,4043.7,0.79729]
[1734373940688,3.37750234,4043.8,4043.7,3.79729]
[1734373940990,3.71525257,4043.8,4043.4,0.24731]
[1734373941201,3.71525257,4043.8,4043.7,3.0]
[1734373941477,3.71525257,4043.8,4043.5,0.24731]
[1734373941656,3.71525257,4043.8,4043.7,3.0]
[1734373941850,3.71525257,4043.8,4042.4,1.00617]
[1734373941851,4.48285257,4043.8,4042.4,1.00617]
[1734373942051,3.37750234,4043.1,4042.4,1.00617]
[1734373942326,3.37750234,4043.1,4042.9,0.24734]
[1734373942700,3.37750234,4043.1,4042.4,1.00617]
[1734373942859,0.7676,4043.0,4042.4,0.24737]
[1734373943178,0.7676,4043.0,4042.6,0.24736]
[1734373943555,0.7676,4043.0,4042.9,0.24734]
[1734373944288,0.7676,4043.0,4042.1,0.55]
[1734373944442,3.37750234,4042.6,4042.1,0.55]
[1734373944639,3.37750234,4042.6,4041.7,0.7736]
[1734373945140,3.37750234,4042.6,4042.0,0.2474]
[1734373945349,0.7767,4042.5,4042.0,0.2474]
[1734373945543,0.7767,4042.5,4041.4,0.24743]
[1734373946118,0.7767,4043.3,4043.2,0.24732]
[1734373946289,0.67344227,4043.3,4043.2,0.24732]
[1734373947390,3.37750234,4043.6,4043.3,0.24731]
[1734373948155,3.37750234,4043.6,4043.2,3.0]
[1734373949300,3.37750234,4043.6,4042.5,0.8129]
[1734373949508,3.37750234,4043.6,4043.2,0.24732]
[1734373950113,3.37750234,4043.6,4043.1,3.0]
[1734373950256,3.37750234,4043.6,4042.3,0.24737]
[1734373950257,1.02992867,4043.3,4043.0,3.0]
[1734373950461,1.02992867,4043.2,4042.3,0.24738]
[1734373950656,0.7726,4043.2,4042.3,0.24738]
[1734373950883,0.7726,4043.2,4042.6,0.24736]
[1734373950884,1.02992867,4043.0,4042.6,0.24736]
[1734373951279,1.02992867,4043.0,4042.7,0.24735]
[1734373951474,1.4852952,4043.0,4042.8,0.24734]
[1734373951879,1.4852952,4043.0,4042.9,0.24734]
[1734373952715,3.58827715,4043.0,4042.9,0.24734]
[1734373954342,3.58827715,4043.0,4042.7,3.0]
[1734373954479,2.10298195,4042.9,4042.6,0.24735]
[1734373954681,2.10298195,4042.9,4042.6,3.0]
[1734373954995,2.10298195,4042.9,4042.8,0.24735]
[1734373955197,2.10298195,4042.9,4042.6,3.0]
[1734373955397,0.84119278,4042.8,4042.6,3.0]
[1734373955613,1.02992867,4042.9,4042.8,0.24734]
[1734373955813,1.63983358,4042.9,4042.0,0.7862]
[1734373956018,1.03135179,4042.7,4041.8,0.24741]
[1734373956232,3.77758052,4042.4,4041.9,0.2474]
[1734373956436,3.77758052,4042.4,4041.1,0.7827]
[1734373956437,1.03135179,4042.2,4042.1,0.24739]
[1734373956591,3.6533918,4042.3,4042.2,0.24739]
[1734373956592,1.03135179,4042.3,4042.2,0.24739]
[1734373956793,2.41988061,4042.3,4042.2,0.24739]
[1734373957124,1.57861147,4042.3,4042.0,0.2474]
[1734373957288,2.10317285,4042.2,4042.1,0.24739]
[1734373957711,1.03135179,4042.5,4042.1,0.24739]
[1734373957996,3.13411962,4042.5,4042.1,0.24739]
[1734373958205,0.84110713,4042.4,4042.3,0.24738]
[1734373958416,1.03135179,4042.7,4042.1,0.24739]
[1734373958623,1.55029168,4043.6,4043.5,0.24731]
[1734373958835,2.10220462,4043.7,4043.5,0.24731]
[1734373959053,4.81318208,4044.0,4043.5,0.24731]
[1734373959054,2.10220462,4043.6,4043.5,0.24731]
[1734373959255,0.84088185,4043.6,4043.5,0.24731]
[1734373959540,4.29652041,4044.0,4043.7,0.24729]
[1734373959745,2.72358499,4043.9,4043.7,0.24729]
[1734373959955,2.08723761,4043.8,4043.7,0.24729]
[1734373960652,2.08723761,4043.8,4043.4,3.24731]
[1734373960857,2.08723761,4043.7,4043.4,3.0]
[1734373961024,2.51462528,4043.6,4042.9,0.24734]
[1734373961228,0.83489504,4043.5,4043.4,3.24731]
[1734373961413,2.08730058,4043.5,4043.4,3.24731]
[1734373961926,0.83489504,4043.5,4043.4,0.24731]
[1734373962132,0.83489504,4043.5,4043.4,3.0]
[1734373962343,2.08742533,4043.5,4043.4,3.0]
[1734373962526,2.08742533,4043.5,4043.2,0.24732]
[1734373963161,2.08742533,4043.5,4043.4,3.0]
[1734373963362,0.83489504,4043.5,4043.4,0.24731]
[1734373963658,1.55029168,4043.8,4043.4,0.24731]
[1734373963659,2.08753784,4043.7,4043.4,0.24731]
[1734373963827,2.08761167,4043.6,4043.5,0.24731]
[1734373964027,2.08761167,4043.7,4043.5,0.24731]
[1734373964325,1.55029168,4043.8,4042.8,0.24735]
[1734373964326,3.67820335,4043.6,4042.8,0.24735]
[1734373964525,2.08761167,4043.5,4042.6,0.7823]
[1734373964858,2.08761167,4043.5,4042.7,0.24735]
[1734373964859,1.55029168,4043.3,4042.7,0.24735]
[1734373965162,3.63790335,4043.2,4042.7,0.24735]
[1734373965454,3.63790335,4043.1,4042.7,0.24735]
[1734373965629,2.08761167,4043.0,4042.7,0.24735]
[1734373965828,2.08761167,4043.0,4042.2,0.7823]
[1734373965829,2.08761167,4042.9,4042.4,0.24737]
[1734373966036,2.28784411,4043.2,4042.4,0.24737]
[1734373966037,0.83489504,4042.8,4042.4,0.24737]
[1734373966251,0.83034503,4043.6,4042.7,0.24735]
[1734373966555,0.50072654,4044.9,4041.8,0.24741]
[1734373966556,2.57708007,4044.6,4044.4,0.24725]
[1734373966739,1.51906382,4044.5,4044.2,0.24726]
[1734373966943,1.68176985,4045.0,4044.3,0.24725]
[1734373967159,1.18605573,4044.9,4044.3,0.24725]
[1734373967370,1.18605573,4044.8,4044.3,0.24725]
[1734373967583,1.18605573,4044.7,4044.3,0.24725]
[1734373967777,1.18605573,4044.6,4044.4,0.24725]
[1734373968068,1.18598224,4044.5,4044.4,0.24725]
[1734373968568,2.21705818,4044.5,4044.4,0.24725]
[1734373968766,1.18598224,4044.5,4043.9,0.8278]
[1734373969065,1.03107594,4044.6,4043.9,0.8278]
[1734373969066,1.03107594,4044.6,4044.5,0.24724]
[1734373969383,0.0403,4045.1,4043.9,1.07508]
[1734373969384,1.03107594,4044.8,4044.7,0.24723]
[1734373969661,2.2168605,4044.8,4044.7,0.24723]
[1734373970228,1.41150061,4044.8,4044.2,0.24726]
[1734373970445,1.03107594,4044.9,4044.7,0.24723]
[1734373970651,1.18642663,4044.8,4044.7,0.24723]
[1734373971130,1.18642663,4044.8,4044.6,3.0]
[1734373971326,1.03107594,4044.9,4044.2,0.24726]
[1734373971630,1.20559774,4044.8,4044.6,3.0]
[1734373971852,1.03107594,4044.9,4044.5,0.24724]
[1734373972160,1.20555958,4044.8,4044.6,3.0]
[1734373972365,1.03107594,4044.9,4044.6,3.24724]
[1734373972660,1.20553473,4044.8,4044.6,3.24724]
[1734373972831,1.03107594,4044.9,4044.6,0.24724]
[1734373973038,1.20552782,4044.8,4044.6,3.24724]
[1734373973259,1.03107594,4044.9,4044.6,3.24724]
[1734373973767,1.20551817,4044.8,4044.6,3.24724]
[1734373973932,1.03107594,4044.9,4044.6,3.0]
[1734373974267,1.20551861,4044.8,4044.6,3.0]
[1734373974448,1.03107594,4044.9,4044.5,0.24724]
[1734373974623,1.20545329,4044.8,4044.5,0.24724]
[1734373974821,1.03107594,4044.9,4044.5,0.24724]
[1734373975067,1.20543804,4044.8,4044.5,0.24724]
[1734373975266,1.3443731,4044.9,4044.6,3.0]
[1734373975562,2.23651326,4044.8,4044.5,0.24724]
[1734373975764,1.03107594,4044.8,4044.5,0.24724]
[1734373975926,1.03107594,4044.8,4044.6,3.0]
[1734373976127,1.3443731,4044.9,4044.5,0.24724]
[1734373976339,1.21830678,4044.8,4044.6,0.24724]
[1734373976544,1.3443731,4044.9,4044.6,0.24724]
[1734373976746,1.2183755,4044.8,4044.6,0.24724]
[1734373977091,1.03107594,4044.8,4044.6,0.24724]
[1734373977292,1.23708032,4044.7,4044.6,3.24724]
[1734373977643,1.23708032,4044.7,4044.6,3.0]
[1734373977843,1.64983512,4044.7,4042.9,0.7557]
[1734373978062,1.03093343,4044.4,4043.8,0.24728]
[1734373978238,1.03093343,4044.2,4044.1,0.24727]
[1734373979101,1.03093343,4044.2,4044.0,0.24727]
[1734373979503,1.03093343,4044.2,4043.2,0.7735]
[1734373979804,1.03129269,4043.8,4043.4,0.24731]
[1734373979960,1.03129269,4043.8,4043.1,0.24732]
[1734373980160,2.26870008,4043.7,4043.1,0.24732]
[1734373980397,2.26870008,4043.6,4043.1,0.24732]
[1734373980682,2.26870008,4043.5,4043.2,0.24732]
[1734373980892,1.23740739,4043.4,4043.2,0.24732]
[1734373981197,1.03129269,4043.5,4043.2,0.24732]
[1734373981403,1.28903142,4043.5,4042.8,0.24734]
[1734373981558,1.28903142,4043.5,4042.9,0.24734]
[1734373981559,1.03129269,4043.3,4042.9,0.24734]
[1734373981761,1.03129269,4043.3,4042.8,0.24734]
[1734373981983,2.26940124,4043.2,4042.8,0.24734]
[1734373982170,1.23810855,4043.1,4042.8,0.24734]
[1734373982383,1.03129269,4043.3,4042.8,0.24734]
[1734373982589,2.27479729,4043.2,4042.8,0.24734]
[1734373982807,2.27479729,4043.2,4042.1,0.8049]
[1734373982808,1.03129269,4043.0,4042.1,0.8049]
[1734373982990,1.2838046,4043.1,4042.4,0.24737]
[1734373982991,2.27479729,4042.9,4042.4,0.24737]
[1734373983191,2.27479729,4042.9,4041.0,0.24746]
[1734373983192,2.27479729,4042.8,4041.6,0.8049]
[1734373983395,0.38611919,4042.9,4041.6,0.8049]